bitfinex-derivatives/quotes_BTCF0:USTF0_20250422
["timestamp","ask_amount","ask_price","bid_price","bid_amount"]
[1745321732105,0.24323966,88667.0,88666.0,1.03450802]
[1745321732507,0.24323966,88667.0,88666.0,0.92171622]
[1745321732706,0.24323966,88667.0,88666.0,1.03450802]
[1745321734205,0.24323966,88667.0,88666.0,1.03250802]
[1745321734406,0.24323966,88667.0,88666.0,1.03450802]
[1745321735003,0.24323966,88667.0,88666.0,0.92171622]
[1745321735204,0.24323966,88667.0,88666.0,0.86181622]
[1745321737408,0.17823966,88667.0,88666.0,0.86181622]
[1745321737610,0.17823966,88667.0,88666.0,1.01351622]
[1745321738000,0.17823966,88667.0,88666.0,1.12630802]
[1745321738296,0.17823966,88667.0,88666.0,1.12430802]
[1745321738507,0.17823966,88667.0,88666.0,1.12730802]
[1745321739907,0.06544916,88667.0,88666.0,1.12730802]
[1745321740106,0.06544916,88667.0,88666.0,1.31930802]
[1745321740505,0.06536916,88667.0,88666.0,1.31930802]
[1745321740711,0.06544916,88667.0,88666.0,1.31930802]
[1745321740910,0.17823966,88667.0,88666.0,1.31930802]
[1745321741111,0.17823966,88667.0,88666.0,1.12730802]
[1745321742606,0.06544916,88667.0,88666.0,1.12730802]
[1745321742802,0.06536916,88667.0,88666.0,1.12730802]
[1745321743209,0.06544916,88667.0,88666.0,1.12730802]
[1745321743804,0.17823966,88667.0,88666.0,1.12730802]
[1745321744804,0.06544916,88667.0,88666.0,1.12730802]
[1745321745005,0.00024916,88667.0,88666.0,1.12730802]
[1745321745205,0.00024916,88667.0,88666.0,1.31930802]
[1745321745410,0.00016916,88667.0,88666.0,1.31930802]
[1745321745611,0.0563902,88675.0,88674.0,0.1127816]
[1745321745813,0.1127758,88679.0,88675.0,0.0563898]
[1745321746019,0.2255473,88683.0,88682.0,0.1127714]
[1745321746323,0.0563855,88683.0,88682.0,1.02118762]
[1745321746614,0.056382,88688.0,88687.0,0.1127651]
[1745321746821,0.0563815,88689.0,88688.0,0.1127638]
[1745321747019,0.0563815,88689.0,88688.0,0.76328002]
[1745321747406,0.0777,88690.0,88689.0,0.1127625]
[1745321747615,0.1904613,88690.0,88689.0,0.76147872]
[1745321748006,0.0777,88690.0,88689.0,0.76147872]
[1745321748207,0.1904613,88690.0,88689.0,0.95347872]
[1745321748716,0.19912491,88690.0,88689.0,0.95347872]
[1745321749813,0.19912491,88690.0,88689.0,0.95447872]
[1745321750212,0.19912491,88690.0,88689.0,0.76247872]
[1745321750411,0.08636361,88690.0,88689.0,1.17387872]
[1745321755726,0.08636361,88690.0,88689.0,1.89547872]
[1745321756318,0.08636361,88690.0,88689.0,1.97437872]
[1745321757418,0.16096361,88690.0,88689.0,1.97437872]
[1745321757815,0.27372491,88690.0,88689.0,1.97437872]
[1745321758223,0.27372491,88690.0,88689.0,1.36013]
[1745321758421,0.27372491,88690.0,88689.0,1.134]
[1745321759118,0.46572491,88690.0,88689.0,1.134]
[1745321759815,0.46572491,88690.0,88689.0,1.2467625]
[1745321760216,0.27372491,88690.0,88689.0,1.4728925]
[1745321760416,0.27372491,88690.0,88689.0,1.5492925]
[1745321762230,0.27372491,88690.0,88689.0,1.6288925]
[1745321764739,0.27372491,88690.0,88689.0,1.2680925]
[1745321765327,0.27372491,88690.0,88689.0,0.9072925]
[1745321765832,0.27372491,88690.0,88689.0,1.2680925]
[1745321766130,0.27372491,88690.0,88689.0,0.9072925]
[1745321766332,0.27372491,88690.0,88689.0,1.2680925]
[1745321767135,0.27372491,88690.0,88689.0,0.9072925]
[1745321767337,0.27372491,88690.0,88689.0,1.2680925]
[1745321768435,0.27372491,88690.0,88689.0,1.1916925]
[1745321769035,0.27372491,88690.0,88689.0,1.1120925]
[1745321775038,0.27372491,88690.0,88689.0,0.7512925]
[1745321775328,0.27372491,88690.0,88689.0,1.1120925]
[1745321776619,0.27372491,88690.0,88689.0,1.2682925]
[1745321777320,0.27372491,88690.0,88689.0,1.1120925]
[1745321777731,0.27372491,88690.0,88689.0,0.99933]
[1745321777929,0.27372491,88690.0,88689.0,1.1120925]
[1745321778733,0.27372491,88690.0,88689.0,0.99933]
[1745321778939,0.27372491,88690.0,88689.0,1.1120925]
[1745321779235,0.27372491,88690.0,88689.0,0.99933]
[1745321779421,0.27372491,88690.0,88689.0,1.1120925]
[1745321780127,0.27372491,88690.0,88689.0,0.7732]
[1745321782229,0.46572491,88690.0,88689.0,0.7732]
[1745321783234,0.46772491,88690.0,88689.0,0.7722]
[1745321784029,0.46772491,88690.0,88689.0,0.4114]
[1745321784526,0.46672491,88690.0,88689.0,0.4114]
[1745321784728,0.46772491,88690.0,88689.0,0.4114]
[1745321785636,0.1127651,88687.0,88686.0,0.3608]
[1745321786023,0.3469651,88687.0,88686.0,0.3608]
[1745321786227,0.5389651,88687.0,88686.0,0.3608]
[1745321787128,0.5399651,88687.0,88686.0,0.3608]
[1745321789831,0.5409651,88687.0,88686.0,0.3608]
[1745321790843,0.5399651,88687.0,88686.0,0.3608]
[1745321791137,0.112774,88680.0,88679.0,0.1541]
[1745321791333,0.112774,88680.0,88679.0,0.38023]
[1745321791539,0.187374,88680.0,88679.0,0.65111622]
[1745321792335,0.187374,88680.0,88679.0,0.65311622]
[1745321792539,0.187374,88680.0,88679.0,0.65511622]
[1745321795340,0.187374,88680.0,88679.0,0.65311622]
[1745321795535,0.187374,88680.0,88679.0,0.65411622]
[1745321796441,0.187374,88680.0,88679.0,0.65311622]
[1745321797536,0.187374,88680.0,88679.0,0.65411622]
[1745321797931,0.187374,88680.0,88679.0,0.65311622]
[1745321798135,0.187374,88680.0,88679.0,0.65411622]
[1745321799444,0.187374,88680.0,88679.0,1.01491622]
[1745321800832,0.187374,88680.0,88679.0,0.65411622]
[1745321801038,0.187374,88680.0,88679.0,1.01491622]
[1745321802446,0.187374,88680.0,88679.0,0.65411622]
[1745321802744,0.187374,88680.0,88679.0,1.01491622]
[1745321804044,0.187374,88680.0,88679.0,0.65411622]
[1745321804347,0.187374,88680.0,88679.0,1.01491622]
[1745321808050,0.187374,88680.0,88679.0,1.01391622]
[1745321808252,0.187374,88680.0,88679.0,1.01591622]
[1745321808946,0.267674,88680.0,88679.0,1.01591622]
[1745321809155,0.459674,88680.0,88679.0,1.01591622]
[1745321810045,0.459674,88680.0,88679.0,1.01491622]
[1745321810647,0.459674,88680.0,88679.0,1.01291622]
[1745321810852,0.459674,88680.0,88679.0,0.3628]
[1745321811047,0.538874,88680.0,88679.0,0.3628]
[1745321812246,0.538874,88680.0,88679.0,0.3618]
[1745321813549,0.538874,88680.0,88679.0,0.3608]
[1745321813851,0.538874,88680.0,88679.0,0.3618]
[1745321814348,0.538874,88680.0,88679.0,0.3628]
[1745321818349,0.538874,88680.0,88679.0,0.3618]
[1745321820453,0.539874,88680.0,88679.0,0.3618]
[1745321821057,0.538874,88680.0,88679.0,0.3608]
[1745321822462,0.538874,88680.0,88674.0,0.41156916]
[1745321822463,0.0563895,88676.0,88674.0,0.41156916]
[1745321822756,0.0563895,88676.0,88675.0,0.3608]
[1745321822949,0.0563895,88676.0,88675.0,0.5245]
[1745321823152,0.3611686,88676.0,88675.0,0.5245]
[1745321824160,0.3611686,88676.0,88675.0,0.5255]
[1745321824961,0.3611686,88676.0,88675.0,0.5265]
[1745321825259,0.3611686,88676.0,88675.0,0.5255]
[1745321825460,0.3611686,88676.0,88675.0,0.5265]
[1745321826550,0.3611686,88676.0,88675.0,0.1657]
[1745321826850,0.3611686,88676.0,88675.0,0.5265]
[1745321827258,0.1691686,88676.0,88675.0,0.5265]
[1745321828162,0.3611686,88676.0,88675.0,0.5265]
[1745321831265,0.1691686,88676.0,88675.0,0.5265]
[1745321832273,0.3611686,88676.0,88675.0,0.5265]
[1745321835462,0.3611686,88676.0,88675.0,0.3628]
[1745321836357,0.3611686,88676.0,88675.0,0.3618]
[1745321836661,0.3611686,88676.0,88675.0,0.3628]
[1745321837070,0.3621686,88676.0,88675.0,0.519]
[1745321837364,0.3631686,88676.0,88675.0,0.518]
[1745321837567,0.3621686,88676.0,88675.0,0.518]
[1745321837868,0.3631686,88676.0,88675.0,0.518]
[1745321838570,0.3631686,88676.0,88675.0,0.1572]
[1745321838758,0.3621686,88676.0,88675.0,0.518]
[1745321839864,0.3611686,88676.0,88675.0,0.1572]
[1745321840060,0.3611686,88676.0,88675.0,0.518]
[1745321840671,0.3611686,88676.0,88675.0,0.1572]
[1745321840865,0.3611686,88676.0,88675.0,0.518]
[1745321843373,0.3611686,88676.0,88675.0,0.1572]
[1745321843565,0.3611686,88676.0,88675.0,0.518]
[1745321845166,0.5159686,88676.0,88675.0,0.518]
[1745321845378,0.5169686,88676.0,88675.0,0.518]
[1745321845669,0.5179686,88676.0,88675.0,0.518]
[1745321845874,0.5179686,88676.0,88675.0,0.1572]
[1745321846372,0.5189686,88676.0,88675.0,0.1572]
[1745321847467,0.5179686,88676.0,88675.0,0.1572]
[1745321848072,0.5169686,88676.0,88675.0,0.1572]
[1745321848474,0.4389686,88676.0,88675.0,0.1572]
[1745321848865,0.4379686,88676.0,88675.0,0.1572]
[1745321849578,0.4379686,88676.0,88675.0,0.1582]
[1745321851278,0.4379686,88676.0,88675.0,0.519]
[1745321851574,0.4379686,88676.0,88675.0,0.518]
[1745321855480,0.4389686,88676.0,88675.0,0.518]
[1745321856183,0.4379686,88676.0,88675.0,0.518]
[1745321856478,0.4399686,88676.0,88675.0,0.518]
[1745321856887,0.4399686,88676.0,88675.0,0.1572]
[1745321857070,0.4399686,88676.0,88675.0,0.518]
[1745321869986,0.4399686,88676.0,88675.0,0.5976]
[1745321870985,0.4399686,88676.0,88675.0,0.518]
[1745321875983,0.4399686,88676.0,88675.0,0.5962]
[1745321877684,0.4399686,88676.0,88675.0,0.518]
[1745321879494,0.4399686,88676.0,88675.0,0.5944]
[1745321886001,0.4399686,88676.0,88675.0,0.2336]
[1745321890606,0.3631686,88676.0,88675.0,0.2336]
[1745321891107,0.1712486,88676.0,88675.0,0.2336]
[1745321895111,0.3632486,88676.0,88675.0,0.2336]
[1745321896209,0.1712486,88676.0,88675.0,0.2336]
[1745321897204,0.3632486,88676.0,88675.0,0.2336]
[1745321900413,0.3632486,88676.0,88675.0,0.1572]
[1745321901009,0.4417486,88676.0,88675.0,0.1572]
[1745321909614,0.4427486,88676.0,88675.0,0.1572]
[1745321909917,0.4437486,88676.0,88675.0,0.1572]
[1745321910219,0.4417486,88676.0,88675.0,0.1572]
[1745321910405,0.4437486,88676.0,88675.0,0.1572]
[1745321910606,0.3309695,88676.0,88674.0,0.00016916]
[1745321912315,0.3289695,88676.0,88674.0,0.00016916]
[1745321913611,0.5989695,88676.0,88674.0,0.00016916]
[1745321915023,0.5999695,88676.0,88674.0,0.00016916]
[1745321915317,0.5989695,88676.0,88674.0,0.00016916]
[1745321915523,0.5999695,88676.0,88674.0,0.00016916]
[1745321915722,0.5979695,88676.0,88674.0,0.00016916]
[1745321916023,0.5999695,88676.0,88674.0,0.00016916]
[1745321920428,0.0726219,88675.0,88674.0,0.00016916]
[1745321920617,0.3226219,88675.0,88674.0,0.00016916]
[1745321920817,0.4016219,88675.0,88674.0,0.00016916]
[1745321921124,0.5936219,88675.0,88674.0,0.00016916]
[1745321921522,0.5946219,88675.0,88674.0,0.00016916]
[1745321921820,0.5956219,88675.0,88674.0,0.00016916]
[1745321953350,0.1127918,88666.0,88665.0,0.5156]
[1745321953541,0.3627918,88666.0,88665.0,0.5156]
[1745321953738,0.3627918,88666.0,88665.0,0.1548]
[1745321953943,0.4457918,88666.0,88665.0,0.1548]
[1745321954144,0.6377918,88666.0,88665.0,0.1548]
[1745321954751,0.6377918,88666.0,88665.0,0.1568]
[1745321955751,0.6377918,88666.0,88665.0,0.0801]
[1745321956345,0.6377918,88666.0,88665.0,0.0791]
[1745321956546,0.6397918,88666.0,88665.0,0.0791]
[1745321956746,0.6417918,88666.0,88665.0,0.0781]
[1745321956954,0.6397918,88666.0,88665.0,0.0781]
[1745321957255,0.6407918,88666.0,88665.0,0.0781]
[1745321957756,0.1128007,88659.0,88658.0,0.0826]
[1745321957948,0.3928007,88659.0,88658.0,0.0826]
[1745321958149,0.7427007,88659.0,88658.0,0.57961622]
[1745321958655,0.7427007,88659.0,88658.0,0.57969622]
[1745321959860,0.00010801,88662.0,88658.0,1.30328822]
[1745321960153,0.001,88666.0,88664.0,0.27088622]
[1745321960353,0.01,88666.0,88665.0,0.69080932]
[1745321960556,0.01,88666.0,88665.0,0.80359332]
[1745321960744,0.01008,88666.0,88665.0,1.06966794]
[1745321960944,0.01,88666.0,88665.0,1.06966794]
[1745321961150,0.01008,88666.0,88665.0,1.26166794]
[1745321961452,0.01008,88666.0,88665.0,1.26066794]
[1745321961752,0.1228718,88666.0,88665.0,0.88480022]
[1745321962049,0.1228718,88666.0,88665.0,0.77201622]
[1745321962252,0.1228718,88666.0,88665.0,0.58001622]
[1745321962641,0.01008,88666.0,88665.0,0.58001622]
[1745321962840,0.01008,88666.0,88665.0,0.58401622]
[1745321963040,0.1228718,88666.0,88665.0,0.66151622]
[1745321963254,0.1228718,88666.0,88665.0,0.74061622]
[1745321963549,0.1228718,88666.0,88665.0,0.74261622]
[1745321964152,0.01008,88666.0,88665.0,0.74261622]
[1745321964550,0.01008,88666.0,88665.0,1.10341622]
[1745321966346,0.01008,88666.0,88665.0,1.10041622]
[1745321966854,0.01008,88666.0,88665.0,1.09641622]
[1745321967055,0.01008,88666.0,88665.0,1.09841622]
[1745321967364,0.1228718,88666.0,88665.0,0.1641]
[1745321967556,0.2846718,88666.0,88665.0,0.0851]
[1745321967762,0.3616718,88666.0,88665.0,0.006]
[1745321968055,0.3616718,88666.0,88665.0,0.008]
[1745321968255,0.5536718,88666.0,88665.0,0.008]
[1745321969444,0.5536718,88666.0,88665.0,0.004]
[1745321969655,0.5536718,88666.0,88665.0,0.008]
[1745321970249,0.5536718,88666.0,88665.0,0.004]
[1745321970453,0.5546718,88666.0,88665.0,0.004]
[1745321970856,0.1127943,88664.0,88663.0,8e-05]
[1745321971050,0.3427943,88664.0,88663.0,8e-05]
[1745321972158,0.5347943,88664.0,88663.0,8e-05]
[1745321977557,0.3047943,88664.0,88663.0,8e-05]
[1745321978465,0.3047943,88664.0,88657.0,0.36096916]
[1745321978466,0.112802,88658.0,88657.0,0.36096916]
[1745321978667,0.112802,88658.0,88657.0,0.63185538]
[1745321978865,0.112802,88658.0,88657.0,0.85798538]
[1745321979367,0.189402,88658.0,88657.0,0.85798538]
[1745321979562,0.189402,88658.0,88657.0,0.85998538]
[1745321979964,0.20189561,88658.0,88657.0,0.86098538]
[1745321981566,0.20189561,88658.0,88657.0,1.01828538]
[1745321981768,0.12529561,88658.0,88657.0,1.01828538]
[1745321982061,0.12529561,88658.0,88657.0,1.09618538]
[1745321984062,0.12529561,88658.0,88657.0,0.87005538]
[1745321984266,0.12529561,88658.0,88657.0,1.10903447]
[1745321985166,0.12529561,88658.0,88657.0,1.09618538]
[1745321986762,0.12529561,88658.0,88657.0,1.01828538]
[1745321986955,0.20489561,88658.0,88657.0,1.01828538]
[1745321987159,0.39689561,88658.0,88657.0,1.01828538]
[1745321987663,0.47719561,88658.0,88657.0,1.01828538]
[1745321988160,0.28519561,88658.0,88657.0,1.01828538]
[1745321989059,0.47719561,88658.0,88657.0,1.01828538]
[1745321996076,0.28519561,88658.0,88657.0,1.01828538]
[1745321996265,0.36489561,88658.0,88657.0,1.01828538]
[1745321996465,0.36489561,88658.0,88657.0,0.86098538]
[1745321996666,0.36489561,88658.0,88657.0,0.86106538]
[1745321997175,0.55689561,88658.0,88657.0,0.86106538]
[1745321997384,0.55689561,88658.0,88657.0,0.50026538]
[1745322001281,0.55689561,88658.0,88657.0,0.22937916]
[1745322001779,0.55789561,88658.0,88657.0,0.22737916]
[1745322001980,0.55889561,88658.0,88657.0,0.22637916]
[1745322004279,0.55889561,88658.0,88657.0,0.00024916]
[1745322004484,0.55889561,88658.0,88657.0,0.00016916]
[1745322004674,0.55889561,88658.0,88657.0,0.00024916]
[1745322005074,0.55889561,88658.0,88657.0,0.22637916]
[1745322008079,0.44609361,88658.0,88651.0,0.000108]
[1745322008279,0.1128071,88654.0,88651.0,0.000108]
[1745322008479,0.1128071,88654.0,88650.0,0.3608]
[1745322008678,0.1128071,88654.0,88653.0,0.52251622]
[1745322009181,0.4689071,88654.0,88653.0,0.52259622]
[1745322010779,0.4689071,88654.0,88653.0,0.52359622]
[1745322011869,0.3861071,88654.0,88653.0,0.52359622]
[1745322013381,0.1941071,88654.0,88653.0,0.53594737]
[1745322014374,0.1941071,88654.0,88653.0,0.5359635]
[1745322015177,0.1941071,88654.0,88653.0,0.8967635]
[1745322016176,0.3861071,88654.0,88653.0,0.89677984]
[1745322022688,0.3861071,88654.0,88653.0,0.53597984]
[1745322024780,0.4670071,88654.0,88653.0,0.26509362]
[1745322024980,0.4670071,88654.0,88646.0,0.00052]
[1745322025187,0.0564048,88652.0,88648.0,0.000108]
[1745322025387,0.1572,88651.0,88646.0,0.00052]
[1745322025586,0.1572,88651.0,88648.0,8e-05]
[1745322025988,0.1572,88651.0,88645.0,0.00016916]
[1745322026187,0.42336,88651.0,88648.0,8e-05]
[1745322027591,0.42336,88651.0,88648.0,0.00108]
[1745322028394,0.056412,88641.0,88627.0,0.4114]
[1745322028595,0.1128312,88635.0,88634.0,0.00183821]
[1745322029101,0.3048312,88635.0,88634.0,0.49885443]
[1745322029603,0.4622312,88635.0,88634.0,0.50285443]
[1745322030295,0.4622312,88635.0,88634.0,0.50885443]
[1745322031398,0.4622312,88635.0,88634.0,0.01183821]
[1745322033200,0.47082932,88635.0,88634.0,0.01183821]
[1745322033700,0.39342932,88635.0,88634.0,0.59115443]
[1745322033893,0.39342932,88635.0,88634.0,0.67235443]
[1745322034293,0.12142932,88635.0,88634.0,0.67235443]
[1745322035492,0.00016916,88643.0,88634.0,0.84159453]
[1745322035694,0.11299016,88643.0,88642.0,0.85781622]
[1745322036800,0.11299016,88643.0,88642.0,0.86081622]
[1745322037197,0.12165761,88643.0,88642.0,0.86081622]
[1745322037404,0.12165761,88643.0,88642.0,0.86381622]
[1745322038805,0.12165761,88643.0,88642.0,0.97663852]
[1745322039101,0.12165761,88643.0,88642.0,1.02651622]
[1745322039509,0.40165761,88643.0,88642.0,1.02651622]
[1745322040008,0.28883661,88643.0,88642.0,1.13933852]
[1745322040217,0.40165761,88643.0,88642.0,1.13933852]
[1745322041908,0.28883661,88643.0,88642.0,1.13933852]
[1745322042108,0.40165761,88643.0,88642.0,1.13933852]
[1745322045116,0.28883661,88643.0,88642.0,1.13933852]
[1745322045411,0.28883661,88643.0,88642.0,1.15170079]
[1745322046114,0.28883661,88643.0,88642.0,1.34370079]
[1745322046299,0.28883661,88643.0,88642.0,1.35939531]
[1745322047110,0.28883661,88643.0,88642.0,1.34370079]
[1745322049207,0.40165761,88643.0,88642.0,1.34370079]
[1745322049519,0.40165761,88643.0,88642.0,1.34371567]
[1745322050002,0.28883661,88643.0,88642.0,1.34371567]
[1745322050412,0.40165761,88643.0,88642.0,1.34371567]
[1745322051020,0.40165761,88643.0,88642.0,1.70451567]
[1745322051413,0.28883661,88643.0,88642.0,1.70451567]
[1745322053418,0.07812,88708.0,88667.0,0.27088622]
[1745322053604,0.3608,88704.0,88682.0,0.27088622]
[1745322053914,0.1127619,88690.0,88689.0,0.1127625]
[1745322054210,0.1127625,88689.0,88688.0,0.1127638]
[1745322054400,0.12,88689.0,88688.0,0.02850749]
[1745322054602,0.19878,88689.0,88688.0,0.63828751]
[1745322054800,0.1987,88689.0,88688.0,0.63828751]
[1745322055107,0.3115425,88689.0,88688.0,0.81706415]
[1745322055299,0.19878,88689.0,88688.0,0.80178002]
[1745322055698,0.12008,88689.0,88688.0,0.80178002]
[1745322055906,0.12,88689.0,88688.0,0.80178002]
[1745322056101,0.12008,88689.0,88688.0,0.80178002]
[1745322056303,0.12,88689.0,88688.0,0.80178002]
[1745322056512,0.121,88689.0,88688.0,0.80178002]
[1745322056706,0.12108,88689.0,88688.0,0.80178002]
[1745322057110,0.12008,88689.0,88688.0,0.60978002]
[1745322058418,0.12008,88689.0,88688.0,0.61078002]
[1745322059008,0.20058,88689.0,88688.0,0.61078002]
[1745322060112,0.20058,88689.0,88688.0,0.49801622]
[1745322060314,0.3133426,88689.0,88688.0,0.49801622]
[1745322060619,0.3133426,88689.0,88688.0,0.61078002]
[1745322061117,0.5053426,88689.0,88688.0,0.61078002]
[1745322061721,0.39258,88689.0,88688.0,0.61078002]
[1745322062114,0.5053426,88689.0,88688.0,0.61078002]
[1745322062320,0.5969426,88689.0,88688.0,0.001]
[1745322062621,1.207736,88689.0,88670.0,8e-05]
[1745322062818,0.4735791,88676.0,88675.0,0.22613]
[1745322063115,0.9155791,88676.0,88675.0,0.22613]
[1745322063313,1.1699791,88676.0,88675.0,0.22613]
[1745322064112,0.1127847,88672.0,88670.0,8e-05]
[1745322064416,0.2846854,88671.0,88670.0,8e-05]
[1745322064718,0.1127892,88668.0,88667.0,0.00016916]
[1745322064926,0.3608,88668.0,88651.0,0.1128099]
[1745322065105,0.112804,88657.0,88655.0,0.1128051]
[1745322065306,0.1846,88656.0,88650.0,0.1475056]
[1745322065708,0.2974045,88656.0,88655.0,0.49701622]
[1745322066112,0.4894045,88656.0,88655.0,0.49709622]
[1745322066507,0.3766,88656.0,88655.0,0.60990202]
[1745322067020,0.4894045,88656.0,88655.0,0.49709622]
[1745322068218,0.4894045,88656.0,88655.0,0.49809622]
[1745322075727,0.4894045,88656.0,88655.0,0.22721]
[1745322076727,0.1128083,88653.0,88652.0,0.000108]
[1745322076917,0.1128147,88648.0,88647.0,0.00011298]
[1745322077526,0.3891147,88648.0,88647.0,0.00011298]
[1745322078229,0.1128287,88637.0,88636.0,0.00019683]
[1745322078524,0.0564143,88638.0,88635.0,0.0937]
[1745322078732,0.0885,88636.0,88635.0,0.1501154]
[1745322078922,0.0885,88636.0,88635.0,0.2394154]
[1745322079233,0.0885,88636.0,88635.0,0.74874241]
[1745322079625,0.00016916,88644.0,88643.0,0.1128211]
[1745322080025,0.10510261,88644.0,88643.0,0.2080211]
[1745322080530,0.21792241,88644.0,88643.0,0.2080211]
[1745322080720,0.22657761,88644.0,88643.0,0.2080211]
[1745322081221,0.21305781,88644.0,88643.0,0.70703732]
[1745322081626,0.21305781,88644.0,88643.0,0.70903732]
[1745322083120,0.02105781,88644.0,88643.0,0.70903732]
[1745322087029,0.02105781,88644.0,88643.0,1.70903732]
[1745322088730,0.02105781,88644.0,88643.0,1.72151188]
[1745322090124,0.21305781,88644.0,88643.0,1.72151188]
[1745322091125,0.02105781,88644.0,88643.0,1.72151188]
[1745322093131,0.02105781,88644.0,88643.0,1.72157627]
[1745322093634,0.13387761,88644.0,88643.0,1.11173895]
[1745322093836,0.13387761,88644.0,88643.0,1.01653895]
[1745322094036,0.85748961,88644.0,88643.0,0.13370528]
[1745322094335,1.04948961,88644.0,88643.0,0.13370528]
[1745322094541,1.23848961,88644.0,88643.0,0.13370528]
[1745322094947,1.23848961,88644.0,88643.0,0.13362528]
[1745322095435,0.98848961,88644.0,88643.0,0.13370528]
[1745322096431,0.98848961,88644.0,88643.0,0.13470528]
[1745322096630,0.98848961,88644.0,88643.0,0.13670528]
[1745322099631,0.62768961,88644.0,88643.0,0.13670528]
[1745322099833,0.98848961,88644.0,88643.0,0.13670528]
[1745322101244,0.87567761,88644.0,88643.0,0.13670528]
[1745322103538,0.88067761,88644.0,88643.0,0.13370528]
[1745322104133,0.87967761,88644.0,88643.0,0.13370528]
[1745322116141,0.87767761,88644.0,88643.0,0.13370528]
[1745322116345,0.88067761,88644.0,88643.0,0.13370528]
[1745322116648,0.88167761,88644.0,88643.0,0.13370528]
[1745322118837,0.87867761,88644.0,88643.0,0.13370528]
[1745322119036,0.88067761,88644.0,88643.0,0.13370528]
[1745322119440,0.88067761,88644.0,88643.0,0.13362528]
[1745322120253,0.87967761,88644.0,88643.0,0.13370528]
[1745322120448,0.87967761,88644.0,88643.0,0.13362528]
[1745322120648,0.87967761,88644.0,88643.0,0.13370528]
[1745322122651,0.88067761,88644.0,88643.0,0.13370528]
[1745322124754,0.89015161,88644.0,88643.0,0.13370528]
[1745322127351,1.25095161,88644.0,88643.0,0.13370528]
[1745322128651,1.25095161,88644.0,88643.0,0.04779896]
[1745322128849,1.25095161,88644.0,88643.0,0.04771896]
[1745322128850,1.36376361,88644.0,88643.0,0.04771896]
[1745322129253,1.36376361,88644.0,88643.0,0.04779896]
[1745322130054,1.36376361,88644.0,88643.0,0.01478896]
[1745322130445,1.36376361,88644.0,88643.0,0.01470896]
[1745322130642,1.36376361,88644.0,88643.0,0.01478896]
[1745322131460,1.36376361,88644.0,88630.0,0.0924]
[1745322131461,1.91164381,88644.0,88606.0,0.00507863]
[1745322131659,0.0564199,88629.0,88626.0,0.0001458]
[1745322131957,0.0564199,88629.0,88620.0,0.00019683]
[1745322131958,0.0564215,88626.0,88614.0,0.3608]
[1745322132147,0.2484215,88626.0,88619.0,0.000108]
[1745322132546,0.2484215,88626.0,88623.0,0.3608]
[1745322132856,0.2484215,88626.0,88624.0,0.0983]
[1745322133058,0.2484215,88626.0,88625.0,0.097]
[1745322133357,0.3612575,88626.0,88625.0,0.097]
[1745322133543,0.3632575,88626.0,88625.0,0.097]
[1745322137947,0.2504215,88626.0,88625.0,0.097]
[1745322138849,0.2504215,88626.0,88625.0,0.1918]
[1745322140450,0.2504215,88626.0,88625.0,0.68881622]
[1745322144656,0.2504215,88626.0,88625.0,1.04961622]
[1745322152965,0.4904215,88626.0,88625.0,1.04961622]
[1745322159481,0.4904215,88626.0,88625.0,0.95481622]
[1745322160568,0.5966215,88626.0,88625.0,0.95489622]
[1745322161373,0.5966215,88626.0,88625.0,0.45788]
[1745322163868,0.5966215,88626.0,88625.0,0.3608]
[1745322164068,0.5402,88626.0,88625.0,8e-05]
[1745322164271,0.6530427,88626.0,88625.0,8e-05]
[1745322164469,0.5966217,88626.0,88619.0,0.1014]
[1745322164675,0.5966217,88626.0,88625.0,8e-05]
[1745322165575,0.5956217,88626.0,88625.0,8e-05]
[1745322167069,0.5956217,88626.0,88625.0,0.00108]
[1745322167874,0.7084577,88626.0,88625.0,0.00108]
[1745322170382,0.7084577,88626.0,88625.0,0.001]
[1745322170581,0.7084577,88626.0,88625.0,0.00108]
[1745322173087,0.5956217,88626.0,88625.0,0.00108]
[1745322173290,0.5642204,88625.0,88608.0,0.27186618]
[1745322173487,0.1128745,88601.0,88600.0,0.2031]
[1745322173783,0.3928745,88601.0,88600.0,0.2031]
[1745322174081,0.5848745,88601.0,88600.0,0.92885766]
[1745322174980,0.5858745,88601.0,88600.0,0.68585766]
[1745322175488,0.5868745,88601.0,88600.0,0.69385766]
[1745322176582,0.5868745,88601.0,88600.0,0.90975766]
[1745322176784,0.60118316,88601.0,88600.0,0.90975766]
[1745322181089,0.60118316,88601.0,88600.0,1.63135766]
[1745322182289,0.112872,88603.0,88602.0,0.47575766]
[1745322182488,0.392872,88603.0,88602.0,0.47575766]
[1745322183185,0.59899826,88603.0,88602.0,0.47575766]
[1745322184488,0.59899826,88603.0,88602.0,0.48075766]
[1745322184680,0.59899826,88603.0,88602.0,0.48475766]
[1745322188988,0.59899826,88603.0,88602.0,0.69735766]
[1745322194593,0.59899826,88603.0,88602.0,0.68888616]
[1745322196187,0.71309826,88603.0,88602.0,0.68888616]
[1745322197994,0.71309826,88603.0,88602.0,1.41048616]
[1745322201895,0.71309826,88603.0,88602.0,1.19788616]
[1745322202095,0.81989826,88603.0,88602.0,0.9482585]
[1745322202293,0.81989826,88603.0,88602.0,1.19788616]
[1745322202699,0.81989826,88603.0,88602.0,1.19796616]
[1745322203499,0.81989826,88603.0,88602.0,1.19788616]
[1745322203710,0.81989826,88603.0,88602.0,1.19796616]
[1745322204096,0.81989826,88603.0,88602.0,0.3614085]
[1745322205407,0.1128745,88601.0,88600.0,0.07796867]
[1745322205607,0.28,88601.0,88593.0,0.000108]
[1745322205802,0.28,88601.0,88587.0,0.1159]
[1745322206200,0.472,88601.0,88587.0,0.1159]
[1745322206508,0.472,88601.0,88587.0,0.2247]
[1745322206805,0.472,88601.0,88593.0,8e-05]
[1745322207804,0.5848745,88601.0,88600.0,0.004]
[1745322208200,0.9477425,88601.0,88600.0,0.004]
[1745322208401,0.584868,88601.0,88593.0,0.00308]
[1745322208603,0.472,88601.0,88593.0,0.00708]
[1745322209096,0.5848745,88601.0,88600.0,0.003]
[1745322209298,0.5848745,88601.0,88600.0,0.007]
[1745322209497,0.6977425,88601.0,88600.0,0.007]
[1745322210908,0.6977425,88601.0,88600.0,0.004]
[1745322211100,0.6977425,88601.0,88593.0,0.00708]
[1745322211101,0.584868,88601.0,88593.0,0.00708]
[1745322211300,0.472,88601.0,88593.0,0.00708]
[1745322212010,0.1128885,88590.0,88589.0,0.3608]
[1745322212215,0.3928885,88590.0,88589.0,0.3608]
[1745322212600,0.3928885,88590.0,88589.0,0.36088]
[1745322213213,0.5848885,88590.0,88589.0,0.36088]
[1745322214811,0.59452356,88590.0,88589.0,0.36688]